[Event "The Elitserien 2024/25: round 1 - 3"]
[Site "Scandic Infra City, Kanalvagen 10, Upplands Vasby, Sweden"]
[Date "2024.10.04"]
[Round "1.29"]
[White "Walinder, Lars"]
[Black "Schneider, Stefan"]
[Result "1/2-1/2"]
[TimeControl "90 minutes for 40 moves + 30 minutes for the rest of the game + 30 seconds per move from move one."]
[WhiteTitle "FM"]
[BlackTitle "IM"]
[WhiteFideId "1707329"]
[BlackFideId "1703013"]
[WhiteElo "2223"]
[BlackElo "2384"]

1. c4 {[%clk 01:30:30]} {[%emt 00:00:30]} e5 {[%clk 01:30:06]} {[%emt
00:00:54]} 2. Nc3 {[%clk 01:30:43]} {[%emt 00:00:17]} Nf6 {[%clk 01:29:52]}
{[%emt 00:00:44]} 3. Nf3 {[%clk 01:31:04]} {[%emt 00:00:09]} Nc6 {[%clk
01:30:11]} {[%emt 00:00:12]} 4. e3 {[%clk 01:31:04]} {[%emt 00:00:30]} Bb4
{[%clk 01:22:12]} {[%emt 00:08:28]} 5. Qc2 {[%clk 01:30:43]} {[%emt 00:00:51]}
Bxc3 {[%clk 01:17:02]} {[%emt 00:05:41]} 6. Qxc3 {[%clk 01:31:03]} {[%emt
00:00:09]} Qe7 {[%clk 01:17:13]} {[%emt 00:00:18]} 7. d4 {[%clk 01:31:14]}
{[%emt 00:00:19]} Ne4 {[%clk 01:10:10]} {[%emt 00:07:33]} 8. Qd3 {[%clk
01:30:07]} {[%emt 00:01:37]} exd4 {[%clk 01:00:48]} {[%emt 00:09:53]} 9. Nxd4
{[%clk 01:27:22]} {[%emt 00:03:16]} O-O {[%clk 00:53:42]} {[%emt 00:07:35]} 10.
Be2 {[%clk 01:27:05]} {[%emt 00:00:46]} Qb4+ {[%clk 00:42:10]} {[%emt
00:12:03]} 11. Kf1 {[%clk 01:25:26]} {[%emt 00:02:08]} Qe7 {[%clk 00:40:54]}
{[%emt 00:01:46]} 12. f3 {[%clk 01:24:00]} {[%emt 00:01:56]} Nc5 {[%clk
00:36:27]} {[%emt 00:04:58]} 13. Nxc6 {[%clk 01:15:16]} {[%emt 00:09:14]} bxc6
{[%clk 00:34:07]} {[%emt 00:02:50]} 14. Qc3 {[%clk 01:14:09]} {[%emt 00:01:37]}
a5 {[%clk 00:31:27]} {[%emt 00:03:10]} 15. Kf2 {[%clk 00:57:45]} {[%emt
00:16:54]} a4 {[%clk 00:25:59]} {[%emt 00:05:58]} 16. Re1 {[%clk 00:55:38]}
{[%emt 00:02:36]} d6 {[%clk 00:22:36]} {[%emt 00:03:53]} 17. Kg1 {[%clk
00:52:47]} {[%emt 00:03:21]} f5 {[%clk 00:21:26]} {[%emt 00:01:40]} 18. Rb1
{[%clk 00:47:14]} {[%emt 00:06:04]} Bd7 {[%clk 00:18:29]} {[%emt 00:03:27]} 19.
b4 {[%clk 00:43:51]} {[%emt 00:03:54]} axb3 {[%clk 00:18:33]} {[%emt 00:00:26]}
20. axb3 {[%clk 00:44:08]} {[%emt 00:00:12]} Rab8 {[%clk 00:17:01]} {[%emt
00:02:01]} 1/2-1/2

[Event "The Elitserien 2024/25: round 1 - 3"]
[Site "Scandic Infra City, Kanalvagen 10, Upplands Vasby, Sweden"]
[Date "2024.10.04"]
[Round "1.30"]
[White "Lindgren, Philip"]
[Black "Naslund, Mikael"]
[Result "1-0"]
[TimeControl "90 minutes for 40 moves + 30 minutes for the rest of the game + 30 seconds per move from move one."]
[WhiteTitle "IM"]
[BlackTitle "FM"]
[WhiteFideId "1713230"]
[BlackFideId "1708260"]
[WhiteElo "2379"]
[BlackElo "2107"]

1. d4 {[%clk 01:30:37]} {[%emt 00:00:21]} Nf6 {[%clk 01:30:34]} {[%emt
00:00:27]} 2. Nf3 {[%clk 01:29:48]} {[%emt 00:01:18]} e6 {[%clk 01:30:45]}
{[%emt 00:00:19]} 3. c4 {[%clk 01:27:24]} {[%emt 00:02:55]} d5 {[%clk
01:31:01]} {[%emt 00:00:14]} 4. Bg5 {[%clk 01:24:28]} {[%emt 00:03:26]} Bb4+
{[%clk 01:31:03]} {[%emt 00:00:27]} 5. Nbd2 {[%clk 01:20:11]} {[%emt 00:04:47]}
dxc4 {[%clk 01:29:13]} {[%emt 00:02:21]} 6. Qc2 {[%clk 01:13:53]} {[%emt
00:06:47]} b5 {[%clk 01:27:39]} {[%emt 00:02:04]} 7. a4 {[%clk 01:08:48]}
{[%emt 00:05:35]} c6 {[%clk 01:26:05]} {[%emt 00:02:04]} 8. Bxf6 {[%clk
00:58:50]} {[%emt 00:10:28]} gxf6 {[%clk 01:24:47]} {[%emt 00:01:47]} 9. g3
{[%clk 00:55:21]} {[%emt 00:03:59]} Bb7 {[%clk 01:20:59]} {[%emt 00:04:19]} 10.
Bg2 {[%clk 00:55:20]} {[%emt 00:00:31]} Nd7 {[%clk 01:16:59]} {[%emt 00:04:31]}
11. O-O {[%clk 00:54:05]} {[%emt 00:01:45]} a6 {[%clk 01:15:05]} {[%emt
00:02:23]} 12. b3 {[%clk 00:50:51]} {[%emt 00:03:44]} cxb3 {[%clk 01:09:41]}
{[%emt 00:05:55]} 13. Nxb3 {[%clk 00:51:12]} {[%emt 00:00:09]} Nb6 {[%clk
01:04:27]} {[%emt 00:05:44]} 14. Ne1 {[%clk 00:35:29]} {[%emt 00:16:13]} Nc4
{[%clk 00:46:36]} {[%emt 00:18:21]} 15. Nd3 {[%clk 00:34:38]} {[%emt 00:01:20]}
Be7 {[%clk 00:44:42]} {[%emt 00:02:24]} 16. axb5 {[%clk 00:27:24]} {[%emt
00:07:43]} axb5 {[%clk 00:44:58]} {[%emt 00:00:14]} 17. Nb2 {[%clk 00:27:47]}
{[%emt 00:00:07]} Rxa1 {[%clk 00:40:15]} {[%emt 00:05:14]} 18. Rxa1 {[%clk
00:28:09]} {[%emt 00:00:07]} Nxb2 {[%clk 00:40:17]} {[%emt 00:00:28]} 19. Ra7
{[%clk 00:21:23]} {[%emt 00:07:16]} Nc4 {[%clk 00:32:15]} {[%emt 00:08:33]} 20.
Rxb7 {[%clk 00:21:46]} {[%emt 00:00:07]} O-O {[%clk 00:29:59]} {[%emt
00:02:45]} 21. Bxc6 {[%clk 00:21:33]} {[%emt 00:00:44]} Qc8 {[%clk 00:23:05]}
{[%emt 00:07:24]} 22. Be4 {[%clk 00:19:36]} {[%emt 00:02:27]} f5 {[%clk
00:21:25]} {[%emt 00:02:09]} 23. Rxe7 {[%clk 00:18:47]} {[%emt 00:01:19]} fxe4
{[%clk 00:21:47]} {[%emt 00:00:08]} 24. Qxe4 {[%clk 00:18:49]} {[%emt
00:00:28]} Qa6 {[%clk 00:20:57]} {[%emt 00:01:20]} 25. Qg4+ {[%clk 00:16:54]}
{[%emt 00:02:24]} Kh8 {[%clk 00:21:18]} {[%emt 00:00:10]} 26. Qh5 {[%clk
00:06:54]} {[%emt 00:10:30]} Kg8 {[%clk 00:21:25]} {[%emt 00:00:22]} 27. Qg5+
{[%clk 00:07:18]} {[%emt 00:00:07]} Kh8 {[%clk 00:21:45]} {[%emt 00:00:11]} 28.
Qf6+ {[%clk 00:07:23]} {[%emt 00:00:25]} Kg8 {[%clk 00:22:09]} {[%emt
00:00:05]} 29. Nc5 {[%clk 00:03:53]} {[%emt 00:04:01]} Qa1+ {[%clk 00:19:48]}
{[%emt 00:02:51]} 30. Kg2 {[%clk 00:04:17]} {[%emt 00:00:05]} Qa8+ {[%clk
00:17:58]} {[%emt 00:02:20]} 31. e4 {[%clk 00:02:35]} {[%emt 00:02:13]} Nd6
{[%clk 00:15:47]} {[%emt 00:02:39]} 32. Qg5+ {[%clk 00:02:38]} {[%emt
00:00:28]} Kh8 {[%clk 00:16:10]} {[%emt 00:00:08]} 33. Qe5+ {[%clk 00:03:03]}
{[%emt 00:00:05]} 1-0

[Event "The Elitserien 2024/25: round 1 - 3"]
[Site "Scandic Infra City, Kanalvagen 10, Upplands Vasby, Sweden"]
[Date "2024.10.04"]
[Round "1.31"]
[White "Persson, Andreas"]
[Black "Brynell, Stellan"]
[Result "0-1"]
[TimeControl "90 minutes for 40 moves + 30 minutes for the rest of the game + 30 seconds per move from move one."]
[WhiteTitle "CM"]
[BlackTitle "GM"]
[WhiteFideId "1707957"]
[BlackFideId "1700219"]
[WhiteElo "2173"]
[BlackElo "2368"]

1. d4 {[%clk 01:30:56]} {[%emt 00:00:03]} Nf6 {[%clk 01:30:45]} {[%emt
00:00:15]} 2. Nf3 {[%clk 01:31:06]} {[%emt 00:00:20]} e6 {[%clk 01:30:23]}
{[%emt 00:00:53]} 3. g3 {[%clk 01:30:57]} {[%emt 00:00:38]} c5 {[%clk
01:29:40]} {[%emt 00:01:14]} 4. Bg2 {[%clk 01:30:27]} {[%emt 00:01:00]} cxd4
{[%clk 01:29:38]} {[%emt 00:00:31]} 5. O-O {[%clk 01:29:44]} {[%emt 00:01:14]}
d5 {[%clk 01:29:35]} {[%emt 00:00:34]} 6. Nxd4 {[%clk 01:29:10]} {[%emt
00:01:04]} e5 {[%clk 01:29:08]} {[%emt 00:00:56]} 7. Nb3 {[%clk 01:27:05]}
{[%emt 00:02:36]} Be6 {[%clk 01:20:52]} {[%emt 00:08:45]} 8. c4 {[%clk
01:17:34]} {[%emt 00:10:01]} Nc6 {[%clk 01:16:24]} {[%emt 00:04:58]} 9. cxd5
{[%clk 01:14:58]} {[%emt 00:03:08]} Nxd5 {[%clk 01:12:55]} {[%emt 00:03:57]} 10.
Bd2 {[%clk 01:10:51]} {[%emt 00:04:37]} Rc8 {[%clk 01:03:07]} {[%emt 00:10:18]}
11. Nc3 {[%clk 01:09:21]} {[%emt 00:02:01]} Nxc3 {[%clk 00:49:59]} {[%emt
00:13:37]} 12. Bxc3 {[%clk 01:09:01]} {[%emt 00:00:51]} Qxd1 {[%clk 00:49:39]}
{[%emt 00:00:51]} 13. Rfxd1 {[%clk 01:07:55]} {[%emt 00:01:35]} f6 {[%clk
00:50:00]} {[%emt 00:00:09]} 14. Na5 {[%clk 00:54:22]} {[%emt 00:14:04]} Nxa5
{[%clk 00:49:35]} {[%emt 00:00:55]} 15. Bxa5 {[%clk 00:54:46]} {[%emt
00:00:05]} b6 {[%clk 00:49:46]} {[%emt 00:00:19]} 16. Be1 {[%clk 00:51:51]}
{[%emt 00:03:24]} Kf7 {[%clk 00:44:36]} {[%emt 00:05:40]} 17. Rac1 {[%clk
00:48:20]} {[%emt 00:04:00]} Be7 {[%clk 00:44:21]} {[%emt 00:00:45]} 18. a3
{[%clk 00:44:14]} {[%emt 00:04:37]} Rhd8 {[%clk 00:42:03]} {[%emt 00:02:48]} 19.
Kf1 {[%clk 00:36:43]} {[%emt 00:08:01]} a5 {[%clk 00:23:27]} {[%emt 00:19:05]}
20. Bc3 {[%clk 00:30:11]} {[%emt 00:07:03]} Bb3 {[%clk 00:20:41]} {[%emt
00:03:15]} 21. Rxd8 {[%clk 00:29:32]} {[%emt 00:01:10]} Rxd8 {[%clk 00:21:02]}
{[%emt 00:00:08]} 22. Ke1 {[%clk 00:25:51]} {[%emt 00:04:10]} Ke6 {[%clk
00:19:34]} {[%emt 00:01:58]} 23. Bd2 {[%clk 00:24:16]} {[%emt 00:02:05]} Bc5
{[%clk 00:19:22]} {[%emt 00:00:42]} 24. e3 {[%clk 00:22:45]} {[%emt 00:02:01]}
Bd5 {[%clk 00:11:19]} {[%emt 00:08:33]} 25. Bxd5+ {[%clk 00:19:30]} {[%emt
00:03:46]} Rxd5 {[%clk 00:08:17]} {[%emt 00:03:32]} 26. Ke2 {[%clk 00:17:29]}
{[%emt 00:02:31]} e4 {[%clk 00:07:43]} {[%emt 00:01:03]} 27. Rc4 {[%clk
00:13:31]} {[%emt 00:04:28]} f5 {[%clk 00:07:34]} {[%emt 00:00:39]} 28. b4
{[%clk 00:12:44]} {[%emt 00:01:17]} axb4 {[%clk 00:07:49]} {[%emt 00:00:16]} 29.
Bxb4 {[%clk 00:12:27]} {[%emt 00:00:46]} Kd6 {[%clk 00:07:39]} {[%emt
00:00:41]} 30. h4 {[%clk 00:08:53]} {[%emt 00:04:03]} Rd3 {[%clk 00:06:23]}
{[%emt 00:01:46]} 31. Rc2 {[%clk 00:06:40]} {[%emt 00:02:43]} Bxb4 {[%clk
00:05:10]} {[%emt 00:01:44]} 32. axb4 {[%clk 00:06:57]} {[%emt 00:00:13]} Rb3
{[%clk 00:04:50]} {[%emt 00:00:49]} 33. Rc4 {[%clk 00:06:12]} {[%emt 00:01:15]}
Rb2+ {[%clk 00:04:56]} {[%emt 00:00:24]} 34. Ke1 {[%clk 00:06:05]} {[%emt
00:00:37]} h5 {[%clk 00:04:32]} {[%emt 00:00:55]} 35. Kf1 {[%clk 00:05:56]}
{[%emt 00:00:38]} g6 {[%clk 00:04:06]} {[%emt 00:00:57]} 36. Ke1 {[%clk
00:04:12]} {[%emt 00:02:14]} Kd5 {[%clk 00:03:54]} {[%emt 00:00:41]} 37. Rd4+
{[%clk 00:04:25]} {[%emt 00:00:17]} Kc6 {[%clk 00:04:14]} {[%emt 00:00:11]} 38.
Kf1 {[%clk 00:04:17]} {[%emt 00:00:37]} Rc2 {[%clk 00:02:58]} {[%emt 00:01:46]}
39. Kg2 {[%clk 00:03:20]} {[%emt 00:01:27]} Kb5 {[%clk 00:02:04]} {[%emt
00:01:26]} 40. Rd6 {[%clk 00:01:26]} {[%emt 00:02:23]} Rc6 {[%clk 00:01:52]}
{[%emt 00:00:43]} 41. Rd4 {[%clk 00:01:46]} {[%emt 00:00:10]} Ka4 {[%clk
00:29:14]} {[%emt 00:03:07]} 42. Kh2 {[%clk 00:30:22]} {[%emt 00:01:55]} b5
{[%clk 00:28:33]} {[%emt 00:01:12]} 43. Kg2 {[%clk 00:27:51]} {[%emt 00:03:01]}
Rc4 {[%clk 00:26:27]} {[%emt 00:02:36]} 44. Rd6 {[%clk 00:27:16]} {[%emt
00:01:05]} Kxb4 {[%clk 00:26:43]} {[%emt 00:00:14]} 45. Rxg6 {[%clk 00:27:32]}
{[%emt 00:00:14]} Kc3 {[%clk 00:26:49]} {[%emt 00:00:24]} 46. Rg5 {[%clk
00:25:59]} {[%emt 00:02:04]} b4 {[%clk 00:24:14]} {[%emt 00:03:05]} 47. Rxf5
{[%clk 00:26:10]} {[%emt 00:00:19]} b3 {[%clk 00:24:38]} {[%emt 00:00:06]} 48.
Rd5 {[%clk 00:25:50]} {[%emt 00:00:50]} b2 {[%clk 00:19:41]} {[%emt 00:05:27]}
49. Rd1 {[%clk 00:26:06]} {[%emt 00:00:13]} Kb3 {[%clk 00:18:27]} {[%emt
00:01:44]} 50. g4 {[%clk 00:24:28]} {[%emt 00:02:08]} Rc1 {[%clk 00:17:10]}
{[%emt 00:01:47]} 51. Rd8 {[%clk 00:24:42]} {[%emt 00:00:16]} b1=Q {[%clk
00:16:58]} {[%emt 00:00:43]} 52. Rb8+ {[%clk 00:25:01]} {[%emt 00:00:10]} Kc4
{[%clk 00:17:22]} {[%emt 00:00:06]} 53. Rxb1 {[%clk 00:25:11]} {[%emt
00:00:21]} Rxb1 {[%clk 00:17:48]} {[%emt 00:00:03]} 54. gxh5 {[%clk 00:24:42]}
{[%emt 00:00:59]} Kd5 {[%clk 00:17:39]} {[%emt 00:00:40]} 55. Kg3 {[%clk
00:24:21]} {[%emt 00:00:50]} Ke5 {[%clk 00:17:25]} {[%emt 00:00:45]} 56. f3
{[%clk 00:22:13]} {[%emt 00:02:39]} Rg1+ {[%clk 00:15:21]} {[%emt 00:02:34]} 57.
Kf2 {[%clk 00:22:15]} {[%emt 00:00:26]} Rg8 {[%clk 00:15:24]} {[%emt 00:00:27]}
58. fxe4 {[%clk 00:21:12]} {[%emt 00:01:34]} Rg4 {[%clk 00:15:23]} {[%emt
00:00:31]} 0-1

[Event "The Elitserien 2024/25: round 1 - 3"]
[Site "Scandic Infra City, Kanalvagen 10, Upplands Vasby, Sweden"]
[Date "2024.10.04"]
[Round "1.32"]
[White "Carlsson, Daniel"]
[Black "Ral Lustig, Melvin"]
[Result "1/2-1/2"]
[TimeControl "90 minutes for 40 moves + 30 minutes for the rest of the game + 30 seconds per move from move one."]
[WhiteFideId "1703021"]
[BlackFideId "1764195"]
[WhiteElo "2289"]
[BlackElo "2044"]

1. e4 {[%clk 01:30:56]} {[%emt 00:00:03]} e5 {[%clk 01:30:42]} {[%emt
00:00:19]} 2. Nf3 {[%clk 01:30:50]} {[%emt 00:00:35]} Nc6 {[%clk 01:31:03]}
{[%emt 00:00:08]} 3. Bb5 {[%clk 01:31:12]} {[%emt 00:00:10]} a6 {[%clk
01:31:26]} {[%emt 00:00:06]} 4. Ba4 {[%clk 01:30:48]} {[%emt 00:00:54]} Nf6
{[%clk 01:31:47]} {[%emt 00:00:10]} 5. O-O {[%clk 01:31:07]} {[%emt 00:00:11]}
b5 {[%clk 01:32:13]} {[%emt 00:00:04]} 6. Bb3 {[%clk 01:31:29]} {[%emt
00:00:08]} Bc5 {[%clk 01:32:32]} {[%emt 00:00:11]} 7. Nxe5 {[%clk 01:26:31]}
{[%emt 00:05:28]} Nxe5 {[%clk 01:32:41]} {[%emt 00:00:21]} 8. d4 {[%clk
01:26:55]} {[%emt 00:00:06]} Bxd4 {[%clk 01:33:07]} {[%emt 00:00:04]} 9. Qxd4
{[%clk 01:27:11]} {[%emt 00:00:13]} d6 {[%clk 01:33:32]} {[%emt 00:00:05]} 10.
c3 {[%clk 01:16:16]} {[%emt 00:11:27]} c5 {[%clk 01:23:30]} {[%emt 00:10:31]}
11. Qe3 {[%clk 01:14:46]} {[%emt 00:02:00]} O-O {[%clk 01:17:59]} {[%emt
00:06:02]} 12. Rd1 {[%clk 01:13:16]} {[%emt 00:01:58]} Bb7 {[%clk 01:09:08]}
{[%emt 00:09:22]} 13. Nd2 {[%clk 01:11:06]} {[%emt 00:02:40]} Re8 {[%clk
01:07:52]} {[%emt 00:01:47]} 14. f3 {[%clk 01:10:02]} {[%emt 00:01:34]} Qc7
{[%clk 01:04:00]} {[%emt 00:04:22]} 15. Nf1 {[%clk 00:54:12]} {[%emt 00:16:19]}
Rad8 {[%clk 00:43:34]} {[%emt 00:20:56]} 16. Qf2 {[%clk 00:44:32]} {[%emt
00:10:10]} d5 {[%clk 00:32:48]} {[%emt 00:11:17]} 17. exd5 {[%clk 00:28:09]}
{[%emt 00:16:52]} Bxd5 {[%clk 00:30:15]} {[%emt 00:03:02]} 18. Bg5 {[%clk
00:27:53]} {[%emt 00:00:47]} Bxb3 {[%clk 00:27:26]} {[%emt 00:03:18]} 19. axb3
{[%clk 00:28:01]} {[%emt 00:00:22]} Rxd1 {[%clk 00:27:02]} {[%emt 00:00:55]} 20.
Rxd1 {[%clk 00:28:20]} {[%emt 00:00:11]} Ned7 {[%clk 00:25:42]} {[%emt
00:01:49]} 21. Qg3 {[%clk 00:24:03]} {[%emt 00:04:48]} Qxg3 {[%clk 00:23:35]}
{[%emt 00:02:37]} 22. Nxg3 {[%clk 00:23:46]} {[%emt 00:00:49]} h6 {[%clk
00:23:50]} {[%emt 00:00:14]} 23. Bf4 {[%clk 00:23:54]} {[%emt 00:00:21]} c4
{[%clk 00:15:49]} {[%emt 00:08:31]} 24. bxc4 {[%clk 00:22:37]} {[%emt
00:01:47]} bxc4 {[%clk 00:15:37]} {[%emt 00:00:40]} 25. Kf1 {[%clk 00:16:40]}
{[%emt 00:06:28]} Nc5 {[%clk 00:14:58]} {[%emt 00:01:09]} 26. Bd6 {[%clk
00:15:25]} {[%emt 00:01:46]} Nd3 {[%clk 00:12:28]} {[%emt 00:03:01]} 27. Rb1
{[%clk 00:10:10]} {[%emt 00:05:44]} Re6 {[%clk 00:09:04]} {[%emt 00:03:55]} 28.
Ba3 {[%clk 00:09:14]} {[%emt 00:01:25]} Rb6 {[%clk 00:08:30]} {[%emt 00:01:04]}
29. Nf5 {[%clk 00:03:46]} {[%emt 00:05:59]} Nd5 {[%clk 00:05:34]} {[%emt
00:03:25]} 30. Nd6 {[%clk 00:03:29]} {[%emt 00:00:47]} Ne3+ {[%clk 00:01:58]}
{[%emt 00:04:07]} 31. Ke2 {[%clk 00:03:44]} {[%emt 00:00:13]} Nxg2 {[%clk
00:02:05]} {[%emt 00:00:22]} 32. Nxc4 {[%clk 00:04:04]} {[%emt 00:00:11]} Ndf4+
{[%clk 00:00:51]} {[%emt 00:01:45]} 33. Kd2 {[%clk 00:04:17]} {[%emt 00:00:16]}
Re6 {[%clk 00:00:58]} {[%emt 00:00:22]} 34. Kc2 {[%clk 00:01:49]} {[%emt
00:02:59]} Re2+ {[%clk 00:00:45]} {[%emt 00:00:44]} 35. Kb3 {[%clk 00:02:11]}
{[%emt 00:00:07]} Ne1 {[%clk 00:00:44]} {[%emt 00:00:31]} 36. Bd6 {[%clk
00:02:31]} {[%emt 00:00:10]} Ned3 {[%clk 00:00:40]} {[%emt 00:00:34]} 37. Ra1
{[%clk 00:01:26]} {[%emt 00:01:35]} Rxh2 {[%clk 00:00:41]} {[%emt 00:00:30]} 38.
Rxa6 {[%clk 00:01:49]} {[%emt 00:00:06]} Rg2 {[%clk 00:00:39]} {[%emt
00:00:32]} 39. Ra8+ {[%clk 00:01:28]} {[%emt 00:00:50]} Kh7 {[%emt 00:00:04]}
40. Ra7 {[%clk 00:01:20]} {[%emt 00:00:38]} f6 {[%clk 00:01:03]} {[%emt
00:00:32]} 41. Bxf4 {[%clk 00:01:32]} {[%emt 00:00:18]} Nxf4 {[%clk 00:01:26]}
{[%emt 00:00:07]} 42. Nd6 {[%clk 00:01:48]} {[%emt 00:00:14]} Nd3 {[%clk
00:01:27]} {[%emt 00:00:30]} 43. Ne8 {[%clk 00:01:31]} {[%emt 00:00:47]} Rxb2+
{[%clk 00:01:18]} {[%emt 00:00:38]} 44. Ka3 {[%clk 00:01:42]} {[%emt 00:00:19]}
Rg2 {[%clk 00:00:53]} {[%emt 00:00:55]} 45. Nxf6+ {[%clk 00:02:07]} {[%emt
00:00:06]} Kg6 {[%clk 00:01:07]} {[%emt 00:00:15]} 46. Ne8 {[%clk 00:02:19]}
{[%emt 00:00:18]} Kh7 {[%clk 00:00:58]} {[%emt 00:00:39]} 47. Nf6+ {[%clk
00:01:43]} {[%emt 00:01:06]} Kg6 {[%clk 00:01:22]} {[%emt 00:00:06]} 48. Ne8
{[%clk 00:01:51]} {[%emt 00:00:23]} 1/2-1/2